[Event "December 5 Late 2023"]
[Site "https://www.chess.com"]
[Date "2023.12.05"]
[Round "3"]
[White "Argandona Riveiro, Inigo"]
[Black "Fernandez Hernandez, Gerardo"]
[Result "1-0"]
[Board "144"]
[TimeControl "180+1"]
[WhiteFideId "2212072"]
[BlackFideId "2207400"]
[WhiteElo "2441"]
[BlackElo "2207"]
[WhiteTeam "ESP"]
[BlackTeam "ESP"]
[WhiteClock "0:00:07"]
[BlackClock "0:00:08"]

1. Nf3 {[%clk 0:03:00]}  Nf6 {[%clk 0:02:59]} 2. c4 {[%clk 0:03:01]}  g6 {[%clk 0:02:59]} 3. Nc3 {[%clk 0:03:01]}  Bg7 {[%clk 0:02:59]} 4. e4 {[%clk 0:03:01]}  d6 {[%clk 0:02:59]} 5. d4 {[%clk 0:03:02]}  O-O {[%clk 0:02:59]} 6. Be3 {[%clk 0:03:03]}  Bg4 {[%clk 0:02:58]} 7. Qb3 {[%clk 0:03:02]}  b6 {[%clk 0:02:56]} 8. h3 {[%clk 0:03:01]}  Bxf3 {[%clk 0:02:56]} 9. gxf3 {[%clk 0:03:02]}  c5 {[%clk 0:02:55]} 10. O-O-O {[%clk 0:03:01]}  cxd4 {[%clk 0:02:48]} 11. Bxd4 {[%clk 0:02:58]}  Nc6 {[%clk 0:02:48]} 12. Be3 {[%clk 0:02:58]}  Rc8 {[%clk 0:02:43]} 13. f4 {[%clk 0:02:57]}  Na5 {[%clk 0:02:35]} 14. Qa4 {[%clk 0:02:54]}  Qd7 {[%clk 0:02:32]} 15. Qxd7 {[%clk 0:02:40]}  Nxd7 {[%clk 0:02:32]} 16. Nd5 {[%clk 0:02:38]}  Rfe8 {[%clk 0:02:27]} 17. b3 {[%clk 0:02:25]}  Nc6 {[%clk 0:02:26]} 18. f5 {[%clk 0:01:55]}  Nf6 {[%clk 0:01:44]} 19. Bg2 {[%clk 0:01:42]}  Nxd5 {[%clk 0:01:39]} 20. exd5 {[%clk 0:01:40]}  Ne5 {[%clk 0:01:25]} 21. fxg6 {[%clk 0:01:40]}  hxg6 {[%clk 0:01:22]} 22. f4 {[%clk 0:01:36]}  Nd7 {[%clk 0:01:19]} 23. h4 {[%clk 0:01:36]}  Nf6 {[%clk 0:01:17]} 24. Bh3 {[%clk 0:01:30]}  Rc7 {[%clk 0:01:11]} 25. a4 {[%clk 0:01:27]}  Nh5 {[%clk 0:00:52]} 26. f5 {[%clk 0:01:11]}  gxf5 {[%clk 0:00:48]} 27. Rhg1 {[%clk 0:01:01]}  Kh8 {[%clk 0:00:44]} 28. Bxf5 {[%clk 0:00:59]}  Bf6 {[%clk 0:00:40]} 29. Bg4 {[%clk 0:00:45]}  Ng7 {[%clk 0:00:40]} 30. h5 {[%clk 0:00:46]}  Rg8 {[%clk 0:00:37]} 31. h6 {[%clk 0:00:42]}  Ne8 {[%clk 0:00:36]} 32. Bf5 {[%clk 0:00:41]}  Be5 {[%clk 0:00:26]} 33. Rxg8+ {[%clk 0:00:39]}  Kxg8 {[%clk 0:00:26]} 34. Rg1+ {[%clk 0:00:40]}  Kh8 {[%clk 0:00:24]} 35. h7 {[%clk 0:00:36]}  Ng7 {[%clk 0:00:21]} 36. Bd3 {[%clk 0:00:29]}  e6 {[%clk 0:00:19]} 37. Be4 {[%clk 0:00:27]}  exd5 {[%clk 0:00:18]} 38. Bxd5 {[%clk 0:00:26]}  Re7 {[%clk 0:00:18]} 39. Bg5 {[%clk 0:00:22]}  f6 {[%clk 0:00:17]} 40. Bd2 {[%clk 0:00:20]}  Re8 {[%clk 0:00:15]} 41. Bf7 {[%clk 0:00:18]}  Rf8 {[%clk 0:00:14]} 42. Bg8 {[%clk 0:00:18]}  Rc8 {[%clk 0:00:14]} 43. Bh6 {[%clk 0:00:17]}  Nf5 {[%clk 0:00:12]} 44. Bd2 {[%clk 0:00:13]}  Ng7 {[%clk 0:00:12]} 45. Kc2 {[%clk 0:00:12]}  a6 {[%clk 0:00:12]} 46. Bh6 {[%clk 0:00:11]}  Nf5 {[%clk 0:00:11]} 47. Be6 {[%clk 0:00:11]}  Nd4+ {[%clk 0:00:11]} 48. Kd3 {[%clk 0:00:10]}  Nxe6 {[%clk 0:00:11]} 49. Ke4 {[%clk 0:00:10]}  b5 {[%clk 0:00:10]} 50. Kf5 {[%clk 0:00:08]}  Nd4+ {[%clk 0:00:09]} 51. Kg6 {[%clk 0:00:07]}  Nxb3 {[%clk 0:00:08]} 52. Bg7# {[%clk 0:00:07]} 1-0

[Event "December 5 Late 2023"]
[Site "https://www.chess.com"]
[Date "2023.12.05"]
[Round "3"]
[White "Al-Saffar, Araz Basim Mohammed S"]
[Black "Bhandari, Krish"]
[Result "1-0"]
[Board "148"]
[TimeControl "180+1"]
[WhiteFideId "4801040"]
[BlackFideId "30955106"]
[WhiteElo "2387"]
[BlackElo "2114"]
[WhiteTeam "IRQ"]
[BlackTeam "USA"]
[WhiteClock "0:00:16"]
[BlackClock "0:00:00"]

1. d4 {[%clk 0:03:00]}  b6 {[%clk 0:02:53]} 2. Nf3 {[%clk 0:03:01]}  Bb7 {[%clk 0:02:49]} 3. c4 {[%clk 0:03:02]}  g6 {[%clk 0:02:49]} 4. h4 {[%clk 0:02:56]}  Nf6 {[%clk 0:02:45]} 5. Nc3 {[%clk 0:02:54]}  Bg7 {[%clk 0:02:39]} 6. d5 {[%clk 0:02:54]}  e6 {[%clk 0:02:37]} 7. e4 {[%clk 0:02:49]}  exd5 {[%clk 0:02:34]} 8. exd5 {[%clk 0:02:39]}  O-O {[%clk 0:02:29]} 9. Be2 {[%clk 0:02:32]}  Re8 {[%clk 0:02:19]} 10. Be3 {[%clk 0:02:28]}  d6 {[%clk 0:02:04]} 11. Qd2 {[%clk 0:02:25]}  Nbd7 {[%clk 0:01:52]} 12. O-O-O {[%clk 0:02:20]}  Nc5 {[%clk 0:01:51]} 13. Bg5 {[%clk 0:02:16]}  Qd7 {[%clk 0:01:45]} 14. Qc2 {[%clk 0:01:46]}  Nfe4 {[%clk 0:01:36]} 15. Nxe4 {[%clk 0:01:40]}  Nxe4 {[%clk 0:01:37]} 16. Be3 {[%clk 0:01:40]}  Ng3 {[%clk 0:01:09]} 17. Rhe1 {[%clk 0:01:35]}  Nxe2+ {[%clk 0:01:04]} 18. Rxe2 {[%clk 0:01:36]}  b5 {[%clk 0:01:00]} 19. c5 {[%clk 0:01:22]}  dxc5 {[%clk 0:00:53]} 20. Bxc5 {[%clk 0:01:12]}  Rxe2 {[%clk 0:00:51]} 21. Qxe2 {[%clk 0:01:13]}  Bxd5 {[%clk 0:00:47]} 22. Ne5 {[%clk 0:01:01]}  Qe6 {[%clk 0:00:30]} 23. f4 {[%clk 0:00:27]}  f6 {[%clk 0:00:20]} 24. Qd2 {[%clk 0:00:23]}  c6 {[%clk 0:00:06]} 25. Nf3 {[%clk 0:00:16]}  Bxa2 {[%clk 0:00:05]} 26. Nd4 {[%clk 0:00:14]}  Qc4+ {[%clk 0:00:04]} 27. Qc3 {[%clk 0:00:15]}  Qxc3+ {[%clk 0:00:04]} 28. bxc3 {[%clk 0:00:16]}  Bd5 {[%clk 0:00:04]} 29. Kb2 {[%clk 0:00:16]}  f5 {[%clk 0:00:04]} 30. g3 {[%clk 0:00:17]}  a5 {[%clk 0:00:04]} 31. Bd6 {[%clk 0:00:16]}  b4 {[%clk 0:00:03]} 32. cxb4 {[%clk 0:00:15]}  axb4 {[%clk 0:00:00]} 33. Bxb4 {[%clk 0:00:16]} 1-0

[Event "December 5 Late 2023"]
[Site "https://www.chess.com"]
[Date "2023.12.05"]
[Round "3"]
[White "Ezat, Mohamed"]
[Black "Chabris, Christopher"]
[Result "1-0"]
[Board "151"]
[TimeControl "180+1"]
[WhiteFideId "10600906"]
[BlackFideId "2005263"]
[WhiteElo "2562"]
[BlackElo "2294"]
[WhiteTeam "EGY"]
[BlackTeam "USA"]
[WhiteClock "0:00:49"]
[BlackClock "0:00:00"]

1. d4 {[%clk 0:02:46]}  Nf6 {[%clk 0:02:59]} 2. Nc3 {[%clk 0:02:47]}  d5 {[%clk 0:02:58]} 3. Nf3 {[%clk 0:02:46]}  c6 {[%clk 0:02:53]} 4. Bf4 {[%clk 0:02:26]}  Bf5 {[%clk 0:02:45]} 5. e3 {[%clk 0:02:25]}  Nbd7 {[%clk 0:02:42]} 6. Bd3 {[%clk 0:02:25]}  Bg6 {[%clk 0:02:39]} 7. Ne5 {[%clk 0:02:24]}  e6 {[%clk 0:02:36]} 8. h4 {[%clk 0:02:22]}  Bxd3 {[%clk 0:02:35]} 9. cxd3 {[%clk 0:02:22]}  Be7 {[%clk 0:02:24]} 10. h5 {[%clk 0:02:10]}  h6 {[%clk 0:02:22]} 11. g4 {[%clk 0:02:09]}  Nxe5 {[%clk 0:02:18]} 12. dxe5 {[%clk 0:02:09]}  Nd7 {[%clk 0:02:17]} 13. d4 {[%clk 0:02:09]}  c5 {[%clk 0:02:14]} 14. Rc1 {[%clk 0:02:07]}  Qa5 {[%clk 0:02:10]} 15. O-O {[%clk 0:02:05]}  c4 {[%clk 0:01:59]} 16. e4 {[%clk 0:01:59]}  Nb6 {[%clk 0:01:51]} 17. Bd2 {[%clk 0:01:59]}  Qa6 {[%clk 0:01:46]} 18. exd5 {[%clk 0:01:58]}  Nxd5 {[%clk 0:01:38]} 19. Nxd5 {[%clk 0:01:57]}  exd5 {[%clk 0:01:38]} 20. f4 {[%clk 0:01:58]}  O-O-O {[%clk 0:01:30]} 21. b3 {[%clk 0:01:56]}  Kb8 {[%clk 0:01:30]} 22. Qf3 {[%clk 0:01:54]}  Qxa2 {[%clk 0:01:25]} 23. Be3 {[%clk 0:01:45]}  Qxb3 {[%clk 0:01:21]} 24. Rfd1 {[%clk 0:01:37]}  c3 {[%clk 0:01:17]} 25. Qe2 {[%clk 0:01:29]}  Rc8 {[%clk 0:01:10]} 26. Bf2 {[%clk 0:01:23]}  Ba3 {[%clk 0:00:59]} 27. Rc2 {[%clk 0:01:19]}  Qc4 {[%clk 0:00:51]} 28. Qf3 {[%clk 0:01:14]}  b5 {[%clk 0:00:46]} 29. Rb1 {[%clk 0:01:13]}  b4 {[%clk 0:00:45]} 30. f5 {[%clk 0:01:11]}  b3 {[%clk 0:00:40]} 31. Rxc3 {[%clk 0:01:11]}  Qxc3 {[%clk 0:00:18]} 32. Rxb3+ {[%clk 0:01:10]}  Bb4 {[%clk 0:00:18]} 33. Rxc3 {[%clk 0:01:02]}  Rxc3 {[%clk 0:00:11]} 34. Qxd5 {[%clk 0:01:01]}  a5 {[%clk 0:00:09]} 35. Qb5+ {[%clk 0:00:57]}  Ka7 {[%clk 0:00:08]} 36. d5+ {[%clk 0:00:56]}  Ka8 {[%clk 0:00:08]} 37. Qb6 {[%clk 0:00:49]}  Rc1+ {[%clk 0:00:00]} 38. Kg2 {[%clk 0:00:49]} 1-0

[Event "December 5 Late 2023"]
[Site "https://www.chess.com"]
[Date "2023.12.05"]
[Round "3"]
[White "Calin, Alexandru"]
[Black "Lopez Del Alamo, Antonio"]
[Result "1-0"]
[Board "154"]
[TimeControl "180+1"]
[WhiteFideId "1222961"]
[BlackFideId "2227339"]
[WhiteElo "2499"]
[BlackElo "2291"]
[WhiteTeam "ROU"]
[BlackTeam "ESP"]
[WhiteClock "0:01:18"]
[BlackClock "0:00:00"]

1. e4 {[%clk 0:02:58]}  c5 {[%clk 0:02:51]} 2. Nc3 {[%clk 0:02:56]}  e6 {[%clk 0:02:51]} 3. Nf3 {[%clk 0:02:45]}  Nc6 {[%clk 0:02:42]} 4. Bb5 {[%clk 0:02:44]}  Nd4 {[%clk 0:02:41]} 5. Bc4 {[%clk 0:02:34]}  a6 {[%clk 0:02:36]} 6. a4 {[%clk 0:02:33]}  Qc7 {[%clk 0:02:33]} 7. O-O {[%clk 0:02:30]}  b6 {[%clk 0:02:29]} 8. d3 {[%clk 0:02:23]}  Bb7 {[%clk 0:02:29]} 9. Nxd4 {[%clk 0:02:23]}  cxd4 {[%clk 0:02:30]} 10. Ne2 {[%clk 0:02:23]}  Bc5 {[%clk 0:02:28]} 11. Qd2 {[%clk 0:02:15]}  a5 {[%clk 0:02:24]} 12. Qg5 {[%clk 0:02:15]}  Ne7 {[%clk 0:02:19]} 13. Bf4 {[%clk 0:02:13]}  d6 {[%clk 0:02:18]} 14. Qxg7 {[%clk 0:02:07]}  O-O-O {[%clk 0:02:14]} 15. Qxf7 {[%clk 0:01:53]}  e5 {[%clk 0:02:06]} 16. Bg5 {[%clk 0:01:53]}  Rde8 {[%clk 0:02:04]} 17. f4 {[%clk 0:01:45]}  d5 {[%clk 0:01:29]} 18. Bb5 {[%clk 0:01:39]}  Ref8 {[%clk 0:01:28]} 19. Qe6+ {[%clk 0:01:38]}  Kb8 {[%clk 0:01:26]} 20. fxe5 {[%clk 0:01:39]}  dxe4 {[%clk 0:01:22]} 21. Bxe7 {[%clk 0:01:31]}  Bxe7 {[%clk 0:01:20]} 22. Nxd4 {[%clk 0:01:28]}  Bc5 {[%clk 0:00:58]} 23. c3 {[%clk 0:01:25]}  exd3 {[%clk 0:00:42]} 24. Bxd3 {[%clk 0:01:24]}  Rhg8 {[%clk 0:00:37]} 25. Rxf8+ {[%clk 0:01:19]}  Rxf8 {[%clk 0:00:35]} 26. Rf1 {[%clk 0:01:18]}  Rxf1+ {[%clk 0:00:03]} 27. Kxf1 {[%clk 0:01:19]}  Ka7 {[%clk 0:00:00]} 28. Nb5+ {[%clk 0:01:18]} 1-0

[Event "December 5 Late 2023"]
[Site "https://www.chess.com"]
[Date "2023.12.05"]
[Round "3"]
[White "Novik, Maxim"]
[Black "Szente Varga, Fruzsina"]
[Result "1-0"]
[Board "156"]
[TimeControl "180+1"]
[WhiteFideId "4102924"]
[BlackFideId "712264"]
[WhiteElo "2473"]
[BlackElo "2272"]
[WhiteTeam "LTU"]
[BlackTeam "HUN"]
[WhiteClock "0:01:27"]
[BlackClock "0:00:32"]

1. e4 {[%clk 0:02:59]}  c5 {[%clk 0:03:00]} 2. Nf3 {[%clk 0:02:58]}  Nc6 {[%clk 0:03:00]} 3. Bb5 {[%clk 0:02:53]}  g6 {[%clk 0:02:59]} 4. Bxc6 {[%clk 0:02:52]}  dxc6 {[%clk 0:02:58]} 5. d3 {[%clk 0:02:52]}  Nf6 {[%clk 0:02:56]} 6. h3 {[%clk 0:02:53]}  Bg7 {[%clk 0:02:57]} 7. O-O {[%clk 0:02:52]}  Nd7 {[%clk 0:02:56]} 8. a4 {[%clk 0:02:52]}  e5 {[%clk 0:02:56]} 9. Na3 {[%clk 0:02:50]}  Qc7 {[%clk 0:02:55]} 10. Nc4 {[%clk 0:02:49]}  Nf8 {[%clk 0:02:54]} 11. a5 {[%clk 0:02:37]}  Ne6 {[%clk 0:02:53]} 12. Be3 {[%clk 0:02:37]}  Bd7 {[%clk 0:02:46]} 13. c3 {[%clk 0:02:29]}  O-O-O {[%clk 0:02:45]} 14. b4 {[%clk 0:02:22]}  cxb4 {[%clk 0:02:38]} 15. Bxa7 {[%clk 0:02:21]}  Rdg8 {[%clk 0:02:12]} 16. Bb6 {[%clk 0:02:11]}  Qb8 {[%clk 0:02:11]} 17. a6 {[%clk 0:02:06]}  bxa6 {[%clk 0:02:11]} 18. Rxa6 {[%clk 0:02:06]}  Nc7 {[%clk 0:02:01]} 19. Nd6+ {[%clk 0:01:56]}  Kd8 {[%clk 0:02:00]} 20. Nxf7+ {[%clk 0:01:55]}  Ke7 {[%clk 0:02:00]} 21. Bxc7 {[%clk 0:01:53]}  Qxc7 {[%clk 0:02:01]} 22. Nxh8 {[%clk 0:01:53]}  Bxh8 {[%clk 0:02:01]} 23. cxb4 {[%clk 0:01:51]}  g5 {[%clk 0:01:59]} 24. Qc2 {[%clk 0:01:46]}  g4 {[%clk 0:01:57]} 25. Qc5+ {[%clk 0:01:46]}  Kf7 {[%clk 0:01:55]} 26. Ra7 {[%clk 0:01:45]}  Qc8 {[%clk 0:01:51]} 27. Nxe5+ {[%clk 0:01:44]}  Bxe5 {[%clk 0:01:51]} 28. Qxe5 {[%clk 0:01:44]}  gxh3 {[%clk 0:01:51]} 29. g3 {[%clk 0:01:43]}  Kg6 {[%clk 0:01:45]} 30. Qd6+ {[%clk 0:01:40]}  Be6 {[%clk 0:01:46]} 31. Re7 {[%clk 0:01:40]}  Kf6 {[%clk 0:01:44]} 32. f4 {[%clk 0:01:34]}  Rxg3+ {[%clk 0:01:41]} 33. Kh1 {[%clk 0:01:32]}  Qg8 {[%clk 0:00:48]} 34. f5 {[%clk 0:01:30]}  Rxd3 {[%clk 0:00:33]} 35. Rxe6+ {[%clk 0:01:28]}  Kg5 {[%clk 0:00:32]} 36. Qf4+ {[%clk 0:01:27]}  Kh5 {[%clk 0:00:32]} 37. Rh6# {[%clk 0:01:27]} 1-0

[Event "December 5 Late 2023"]
[Site "https://www.chess.com"]
[Date "2023.12.05"]
[Round "3"]
[White "Nadeev, Sergey"]
[Black "De Souza, Cristiano Gomes"]
[Result "1-0"]
[Board "159"]
[TimeControl "180+1"]
[WhiteFideId "4180038"]
[BlackFideId "2151758"]
[WhiteElo "2447"]
[BlackElo "2239"]
[WhiteTeam "RUS"]
[BlackTeam "BRA"]
[WhiteClock "0:01:54"]
[BlackClock "0:02:09"]

1. e4 {[%clk 0:02:56]}  c5 {[%clk 0:02:59]} 2. Nf3 {[%clk 0:02:56]}  d6 {[%clk 0:02:59]} 3. d4 {[%clk 0:02:56]}  cxd4 {[%clk 0:02:59]} 4. Nxd4 {[%clk 0:02:57]}  Nf6 {[%clk 0:03:00]} 5. Nc3 {[%clk 0:02:58]}  a6 {[%clk 0:03:00]} 6. Bg5 {[%clk 0:02:57]}  e6 {[%clk 0:03:00]} 7. f4 {[%clk 0:02:58]}  Be7 {[%clk 0:03:00]} 8. Qf3 {[%clk 0:02:58]}  h6 {[%clk 0:03:01]} 9. Bh4 {[%clk 0:02:58]}  g5 {[%clk 0:03:01]} 10. fxg5 {[%clk 0:02:58]}  Nfd7 {[%clk 0:03:02]} 11. O-O-O {[%clk 0:02:49]}  Bxg5+ {[%clk 0:02:56]} 12. Bxg5 {[%clk 0:02:49]}  Qxg5+ {[%clk 0:02:55]} 13. Kb1 {[%clk 0:02:49]}  Ne5 {[%clk 0:02:55]} 14. Qh3 {[%clk 0:02:33]}  Ke7 {[%clk 0:02:50]} 15. Be2 {[%clk 0:02:30]}  Nbc6 {[%clk 0:02:49]} 16. Nf3 {[%clk 0:02:30]}  Bd7 {[%clk 0:02:45]} 17. Nxg5 {[%clk 0:02:29]}  hxg5 {[%clk 0:02:45]} 18. Qg3 {[%clk 0:02:27]}  f6 {[%clk 0:02:44]} 19. h4 {[%clk 0:02:23]}  gxh4 {[%clk 0:02:42]} 20. Rxh4 {[%clk 0:02:24]}  Rag8 {[%clk 0:02:40]} 21. Rh7+ {[%clk 0:02:18]}  Kd8 {[%clk 0:02:38]} 22. Rxh8 {[%clk 0:02:17]}  Rxh8 {[%clk 0:02:37]} 23. Qg7 {[%clk 0:02:15]}  Rh2 {[%clk 0:02:33]} 24. Qxf6+ {[%clk 0:02:14]}  Kc7 {[%clk 0:02:33]} 25. Qe7 {[%clk 0:02:13]}  Rxg2 {[%clk 0:02:27]} 26. Qxd6+ {[%clk 0:02:12]}  Kc8 {[%clk 0:02:28]} 27. Bc4 {[%clk 0:02:09]}  Nxc4 {[%clk 0:02:24]} 28. Qxd7+ {[%clk 0:02:09]}  Kb8 {[%clk 0:02:24]} 29. Qxe6 {[%clk 0:02:05]}  Nd2+ {[%clk 0:02:16]} 30. Kc1 {[%clk 0:02:04]}  Nf3 {[%clk 0:02:14]} 31. Qd6+ {[%clk 0:01:54]}  Ka8 {[%clk 0:02:09]} 32. Qf8+ {[%clk 0:01:54]} 1-0

[Event "December 5 Late 2023"]
[Site "https://www.chess.com"]
[Date "2023.12.05"]
[Round "3"]
[White "Bullen, Alex"]
[Black "Mickiewicz, Piotr"]
[Result "0-1"]
[Board "163"]
[TimeControl "180+1"]
[WhiteFideId "1801627"]
[BlackFideId "1114891"]
[WhiteElo "2209"]
[BlackElo "2386"]
[WhiteTeam "WLS"]
[BlackTeam "POL"]
[WhiteClock "0:00:16"]
[BlackClock "0:01:16"]

1. e4 {[%clk 0:02:54]}  e5 {[%clk 0:02:59]} 2. Nf3 {[%clk 0:02:53]}  Nc6 {[%clk 0:02:59]} 3. d4 {[%clk 0:02:53]}  exd4 {[%clk 0:02:58]} 4. Bc4 {[%clk 0:02:54]}  Nf6 {[%clk 0:02:52]} 5. O-O {[%clk 0:02:53]}  d6 {[%clk 0:02:46]} 6. Nxd4 {[%clk 0:02:52]}  Be7 {[%clk 0:02:45]} 7. Bg5 {[%clk 0:02:50]}  O-O {[%clk 0:02:44]} 8. Nc3 {[%clk 0:02:50]}  h6 {[%clk 0:02:28]} 9. Bh4 {[%clk 0:02:49]}  Nxe4 {[%clk 0:02:11]} 10. Bxe7 {[%clk 0:02:48]}  Qxe7 {[%clk 0:02:09]} 11. Nd5 {[%clk 0:02:25]}  Qd8 {[%clk 0:02:04]} 12. Nf4 {[%clk 0:01:59]}  Qf6 {[%clk 0:01:58]} 13. Nxc6 {[%clk 0:01:35]}  bxc6 {[%clk 0:01:59]} 14. Nh5 {[%clk 0:01:33]}  Qe5 {[%clk 0:01:53]} 15. Re1 {[%clk 0:01:20]}  Nxf2 {[%clk 0:01:46]} 16. Rxe5 {[%clk 0:01:04]}  Nxd1 {[%clk 0:01:45]} 17. Re7 {[%clk 0:01:04]}  Nxb2 {[%clk 0:01:37]} 18. Bb3 {[%clk 0:00:46]}  Bg4 {[%clk 0:01:37]} 19. Nf4 {[%clk 0:00:34]}  d5 {[%clk 0:01:30]} 20. h3 {[%clk 0:00:29]}  Bf5 {[%clk 0:01:21]} 21. Rb1 {[%clk 0:00:26]}  Nc4 {[%clk 0:01:19]} 22. Bxc4 {[%clk 0:00:25]}  dxc4 {[%clk 0:01:20]} 23. Rxc7 {[%clk 0:00:26]}  Rfc8 {[%clk 0:01:18]} 24. Rxc8+ {[%clk 0:00:19]}  Rxc8 {[%clk 0:01:17]} 25. c3 {[%clk 0:00:16]}  Bxb1 {[%clk 0:01:16]} 0-1

[Event "December 5 Late 2023"]
[Site "https://www.chess.com"]
[Date "2023.12.05"]
[Round "3"]
[White "Chaika, Vitalii"]
[Black "Vila Dupla, Aurelio"]
[Result "1-0"]
[Board "164"]
[TimeControl "180+1"]
[WhiteFideId "14111802"]
[BlackFideId "2203383"]
[WhiteElo "2385"]
[BlackElo "2208"]
[WhiteTeam "UKR"]
[BlackTeam "ESP"]
[WhiteClock "0:00:04"]
[BlackClock "0:00:00"]

1. d4 {[%clk 0:03:00]}  Nf6 {[%clk 0:02:59]} 2. Bf4 {[%clk 0:03:00]}  g6 {[%clk 0:02:59]} 3. e3 {[%clk 0:03:01]}  Bg7 {[%clk 0:02:59]} 4. h3 {[%clk 0:03:01]}  O-O {[%clk 0:02:58]} 5. Nf3 {[%clk 0:03:02]}  d5 {[%clk 0:02:58]} 6. c3 {[%clk 0:03:00]}  c5 {[%clk 0:02:58]} 7. Nbd2 {[%clk 0:03:01]}  b6 {[%clk 0:02:58]} 8. Bd3 {[%clk 0:02:56]}  Bb7 {[%clk 0:02:58]} 9. O-O {[%clk 0:02:54]}  Nc6 {[%clk 0:02:58]} 10. Qe2 {[%clk 0:02:37]}  Nd7 {[%clk 0:02:57]} 11. Rfd1 {[%clk 0:02:29]}  e5 {[%clk 0:02:54]} 12. dxe5 {[%clk 0:02:29]}  Ndxe5 {[%clk 0:02:54]} 13. Nxe5 {[%clk 0:02:29]}  Nxe5 {[%clk 0:02:54]} 14. Ba6 {[%clk 0:02:15]}  Bc6 {[%clk 0:02:39]} 15. a4 {[%clk 0:02:06]}  Re8 {[%clk 0:02:32]} 16. Bb5 {[%clk 0:02:04]}  Qd7 {[%clk 0:02:20]} 17. Bxc6 {[%clk 0:02:02]}  Qxc6 {[%clk 0:02:20]} 18. Nf3 {[%clk 0:01:49]}  Rad8 {[%clk 0:02:07]} 19. Nxe5 {[%clk 0:01:45]}  Bxe5 {[%clk 0:02:06]} 20. Bxe5 {[%clk 0:01:46]}  Rxe5 {[%clk 0:02:06]} 21. Qb5 {[%clk 0:01:46]}  Rc8 {[%clk 0:01:12]} 22. Rd2 {[%clk 0:01:37]}  Qb7 {[%clk 0:00:46]} 23. a5 {[%clk 0:01:34]}  Qc6 {[%clk 0:00:41]} 24. Qxc6 {[%clk 0:01:09]}  Rxc6 {[%clk 0:00:40]} 25. axb6 {[%clk 0:01:10]}  axb6 {[%clk 0:00:40]} 26. Rad1 {[%clk 0:01:11]}  Rd6 {[%clk 0:00:36]} 27. c4 {[%clk 0:01:11]}  d4 {[%clk 0:00:36]} 28. exd4 {[%clk 0:01:10]}  Rxd4 {[%clk 0:00:35]} 29. Rxd4 {[%clk 0:01:11]}  cxd4 {[%clk 0:00:36]} 30. Rxd4 {[%clk 0:01:11]}  Re1+ {[%clk 0:00:36]} 31. Kh2 {[%clk 0:01:11]}  Re2 {[%clk 0:00:37]} 32. b4 {[%clk 0:01:06]}  Rxf2 {[%clk 0:00:35]} 33. Rd6 {[%clk 0:00:43]}  Rc2 {[%clk 0:00:34]} 34. Rc6 {[%clk 0:00:42]}  Rc3 {[%clk 0:00:28]} 35. b5 {[%clk 0:00:41]}  Kg7 {[%clk 0:00:27]} 36. Kg1 {[%clk 0:00:39]}  h5 {[%clk 0:00:27]} 37. Kf2 {[%clk 0:00:39]}  h4 {[%clk 0:00:27]} 38. Ke2 {[%clk 0:00:38]}  Rc2+ {[%clk 0:00:26]} 39. Kf3 {[%clk 0:00:38]}  Kh6 {[%clk 0:00:23]} 40. Rc7 {[%clk 0:00:35]}  f5 {[%clk 0:00:23]} 41. Rc6 {[%clk 0:00:29]}  Kg5 {[%clk 0:00:22]} 42. Ke3 {[%clk 0:00:18]}  Rxg2 {[%clk 0:00:19]} 43. Rxb6 {[%clk 0:00:18]}  Rg3+ {[%clk 0:00:19]} 44. Kf2 {[%clk 0:00:19]}  Rxh3 {[%clk 0:00:19]} 45. c5 {[%clk 0:00:18]}  Rc3 {[%clk 0:00:19]} 46. Rc6 {[%clk 0:00:11]}  h3 {[%clk 0:00:15]} 47. b6 {[%clk 0:00:10]}  h2 {[%clk 0:00:14]} 48. Kg2 {[%clk 0:00:10]}  Rc2+ {[%clk 0:00:14]} 49. Kh1 {[%clk 0:00:10]}  Rb2 {[%clk 0:00:12]} 50. Rc7 {[%clk 0:00:07]}  Rb5 {[%clk 0:00:06]} 51. Kxh2 {[%clk 0:00:04]}  f4 {[%clk 0:00:00]} 52. b7 {[%clk 0:00:04]} 1-0

[Event "December 5 Late 2023"]
[Site "https://www.chess.com"]
[Date "2023.12.05"]
[Round "3"]
[White "Narva, Triin"]
[Black "Su, Dion"]
[Result "0-1"]
[Board "165"]
[TimeControl "180+1"]
[WhiteFideId "4502680"]
[BlackFideId "2029731"]
[WhiteElo "2198"]
[BlackElo "2376"]
[WhiteTeam "EST"]
[BlackTeam "USA"]
[WhiteClock "0:01:36"]
[BlackClock "0:02:30"]

1. e4 {[%clk 0:02:58]}  e6 {[%clk 0:03:00]} 2. d4 {[%clk 0:02:58]}  d5 {[%clk 0:03:00]} 3. Nd2 {[%clk 0:02:59]}  Nf6 {[%clk 0:03:01]} 4. e5 {[%clk 0:02:59]}  Nfd7 {[%clk 0:03:01]} 5. Bd3 {[%clk 0:03:00]}  c5 {[%clk 0:03:01]} 6. c3 {[%clk 0:03:01]}  Nc6 {[%clk 0:03:02]} 7. Ne2 {[%clk 0:03:01]}  cxd4 {[%clk 0:03:02]} 8. cxd4 {[%clk 0:03:02]}  f6 {[%clk 0:03:03]} 9. exf6 {[%clk 0:03:01]}  Nxf6 {[%clk 0:03:04]} 10. O-O {[%clk 0:03:01]}  Bd6 {[%clk 0:03:04]} 11. f4 {[%clk 0:02:57]}  Qb6 {[%clk 0:02:57]} 12. Nf3 {[%clk 0:02:56]}  O-O {[%clk 0:02:55]} 13. Kh1 {[%clk 0:02:56]}  Bd7 {[%clk 0:02:53]} 14. Ne5 {[%clk 0:02:55]}  Be8 {[%clk 0:02:50]} 15. h3 {[%clk 0:02:44]}  Bh5 {[%clk 0:02:42]} 16. g4 {[%clk 0:02:38]}  Be8 {[%clk 0:02:42]} 17. b3 {[%clk 0:02:06]}  Ne4 {[%clk 0:02:39]} 18. Bxe4 {[%clk 0:01:57]}  dxe4 {[%clk 0:02:40]} 19. Bb2 {[%clk 0:01:55]}  Bxe5 {[%clk 0:02:39]} 20. dxe5 {[%clk 0:01:47]}  Rd8 {[%clk 0:02:33]} 21. Qc2 {[%clk 0:01:44]}  Nb4 {[%clk 0:02:32]} 22. Qxe4 {[%clk 0:01:41]}  Bc6 {[%clk 0:02:32]} 23. Ng3 {[%clk 0:01:39]}  Bxe4+ {[%clk 0:02:31]} 24. Nxe4 {[%clk 0:01:36]}  Qc6 {[%clk 0:02:30]} 0-1